bitfinex/quotes_BTCUSD_20250226
["timestamp","ask_amount","ask_price","bid_price","bid_amount"]
[1740564310159,0.1961997,89235.0,89234.0,0.0058482]
[1740564310926,0.17862271,89235.0,89234.0,0.0058482]
[1740564312133,0.17862271,89235.0,89234.0,0.0028482]
[1740564312556,0.17962271,89235.0,89234.0,0.0008482]
[1740564312957,0.168134,89215.0,89213.0,0.00132928]
[1740564313137,0.01294571,89235.0,89205.0,0.00156916]
[1740564313341,0.01294571,89235.0,89214.0,0.00500956]
[1740564313540,0.16813,89217.0,89213.0,0.00156908]
[1740564313755,0.16813,89217.0,89205.0,0.02257076]
[1740564313756,0.16813,89217.0,89206.0,0.00156914]
[1740564314131,0.002,89215.0,89213.0,0.013]
[1740564314648,0.03157506,89216.0,89206.0,0.168149]
[1740564314838,0.03157506,89216.0,89213.0,0.01101478]
[1740564315041,0.03157506,89216.0,89206.0,0.16971814]
[1740564315238,0.0588296,89216.0,89213.0,0.00501478]
[1740564315437,0.01152771,89215.0,89213.0,0.007]
[1740564315650,0.06624709,89215.0,89213.0,0.007]
[1740564315859,0.06624709,89215.0,89214.0,0.0804]
[1740564316059,0.23438009,89215.0,89214.0,0.0804]
[1740564316806,0.23538009,89215.0,89214.0,0.0804]
[1740564317304,0.23438009,89215.0,89214.0,0.0804]
[1740564317488,0.23438009,89215.0,89214.0,0.0864]
[1740564319586,0.23438009,89215.0,89214.0,0.006]
[1740564320628,0.53480429,89215.0,89214.0,0.006]
[1740564320829,0.63844365,89215.0,89214.0,0.006]
[1740564321029,0.53480429,89215.0,89214.0,0.006]
[1740564321609,0.468135,89214.0,89213.0,0.0008484]
[1740564322517,0.468135,89214.0,89213.0,4e-07]
[1740564323121,0.01052771,89214.0,89198.0,0.0008482]
[1740564323327,0.468163,89199.0,89198.0,0.0008482]
[1740564324300,0.52288238,89199.0,89198.0,0.0008482]
[1740564324494,0.52330012,89199.0,89198.0,0.0008482]
[1740564324694,0.52330012,89199.0,89198.0,0.0018482]
[1740564324929,0.52330012,89199.0,89198.0,0.0028482]
[1740564325554,0.5408853,89199.0,89198.0,0.0028482]
[1740564325761,0.0727223,89199.0,89198.0,0.1298482]
[1740564325969,0.03905027,89199.0,89198.0,0.1298482]
[1740564326256,0.03905027,89199.0,89198.0,0.13494122]
[1740564326606,0.03905027,89199.0,89198.0,0.30310622]
[1740564328876,0.3,89209.0,89199.0,0.0819]
[1740564329034,0.3,89209.0,89200.0,0.22578432]
[1740564329245,0.23257353,89222.0,89201.0,0.00507737]
[1740564329452,0.01758279,89207.0,89202.0,0.0015693]
[1740564329658,0.168142,89210.0,89204.0,0.168153]
[1740564329859,0.3,89220.0,89205.0,0.00505651]
[1740564330215,0.01758333,89206.0,89201.0,0.00156932]
[1740564330351,0.168147,89208.0,89201.0,0.168159]
[1740564330555,0.003,89209.0,89202.0,0.00507215]
[1740564331019,0.003,89209.0,89200.0,0.224214]
[1740564331196,0.168153,89204.0,89203.0,0.00506694]
[1740564331396,0.168156,89203.0,89199.0,0.08346935]
[1740564331596,0.168155,89204.0,89199.0,0.0819]
[1740564331917,0.168155,89204.0,89200.0,0.00508259]
[1740564332227,0.004,89210.0,89200.0,0.00508259]
[1740564332421,0.3,89218.0,89201.0,0.0015693]
[1740564332563,0.003,89208.0,89200.0,0.00304642]
[1740564332769,0.003,89208.0,89201.0,0.0008484]
[1740564332971,0.224197,89207.0,89201.0,0.00389482]
[1740564333190,0.168155,89203.0,89201.0,0.0008484]
[1740564333451,0.168155,89203.0,89202.0,0.00304329]
[1740564334407,0.168157,89202.0,89201.0,0.0008484]
[1740564334616,0.224203,89205.0,89201.0,0.0008484]
[1740564335052,0.168157,89202.0,89201.0,0.0008484]
[1740564335285,0.168157,89202.0,89201.0,0.00389482]
[1740564335889,0.18574064,89202.0,89201.0,0.0008484]
[1740564336438,0.1962314,89202.0,89201.0,0.0008484]
[1740564338097,0.0280744,89202.0,89201.0,0.0008484]
[1740564338276,0.1962314,89202.0,89201.0,0.00389482]
[1740564338496,0.0280744,89202.0,89201.0,0.00389482]
[1740564339239,0.1962314,89202.0,89201.0,0.00389482]
[1740564341496,0.17864776,89202.0,89201.0,0.00389482]
[1740564341894,0.17864776,89202.0,89201.0,0.0008484]
[1740564342102,0.17864776,89202.0,89201.0,0.00389482]
[1740564342336,0.19965632,89202.0,89201.0,0.00389482]
[1740564344377,0.19965632,89202.0,89201.0,0.0008484]
[1740564344577,0.04908298,89202.0,89201.0,0.0008484]
[1740564344799,0.21723998,89202.0,89201.0,0.00389482]
[1740564345006,0.21723998,89202.0,89201.0,0.0008484]
[1740564345997,0.20674922,89202.0,89201.0,0.0008484]
[1740564346172,0.27226494,89202.0,89201.0,0.0008484]
[1740564346383,0.27226494,89202.0,89198.0,0.00095154]
[1740564346384,0.468163,89199.0,89198.0,0.00095154]
[1740564346987,0.468182,89189.0,89188.0,0.16833826]
[1740564347186,0.468182,89189.0,89188.0,0.16844669]
[1740564347441,0.468182,89189.0,89188.0,0.17153381]
[1740564347746,0.48577018,89189.0,89188.0,0.16844669]
[1740564347975,0.48577018,89189.0,89188.0,0.16758916]
[1740564349796,0.48677018,89189.0,89188.0,0.16758916]
[1740564350004,0.48877018,89189.0,89188.0,0.16758916]
[1740564350896,0.47961698,89189.0,89188.0,0.16758916]
[1740564352776,0.17961698,89189.0,89188.0,0.16758916]
[1740564354237,0.19720477,89189.0,89188.0,0.16758916]
[1740564355166,0.22870558,89189.0,89188.0,0.16758916]
[1740564356716,0.22870558,89189.0,89188.0,0.16843776]
[1740564357131,0.52870558,89189.0,89188.0,0.16843776]
[1740564361312,0.51111779,89189.0,89188.0,0.16843776]
[1740564361718,0.50061757,89189.0,89188.0,0.16843776]
[1740564364398,0.02400059,89189.0,89188.0,0.21593776]
[1740564364791,0.04158781,89189.0,89188.0,0.21786721]
[1740564365378,0.03958781,89189.0,89188.0,0.21786721]
[1740564365593,0.03958781,89189.0,89188.0,0.38605121]
[1740564366000,0.03958781,89189.0,89188.0,0.46705121]
[1740564366354,0.03858781,89189.0,89188.0,0.46705121]
[1740564366477,0.01758722,89189.0,89188.0,0.46705121]
[1740564367101,0.01758722,89189.0,89188.0,0.46905121]
[1740564367300,0.01758722,89189.0,89188.0,0.46705121]
[1740564367729,0.01758722,89189.0,89188.0,0.47105121]
[1740564367892,0.01758722,89189.0,89188.0,0.46705121]
[1740564368350,0.01758722,89189.0,89188.0,0.46905121]
[1740564368815,0.01758722,89189.0,89188.0,0.46705121]
[1740564369024,0.01858722,89189.0,89188.0,0.47205121]
[1740564369824,0.01858722,89189.0,89188.0,0.47905121]
[1740564370028,0.01858722,89189.0,89188.0,0.81869206]
[1740564370419,0.001,89189.0,89188.0,0.81869206]
[1740564370614,0.0014243,89189.0,89188.0,0.81869206]
[1740564377012,0.0014243,89189.0,89188.0,0.63596721]
[1740564377200,0.19301224,89189.0,89188.0,0.50746721]
[1740564377414,0.1696063,89189.0,89188.0,0.50746721]
[1740564378179,0.19292269,89189.0,89188.0,0.50746721]
[1740564378766,0.19292269,89189.0,89188.0,0.50553776]
[1740564379331,0.21391668,89189.0,89188.0,0.50553776]
[1740564379745,0.04573468,89189.0,89188.0,0.50553776]
[1740564380484,0.07933022,89189.0,89188.0,0.50553776]
[1740564381416,0.08982882,89189.0,89188.0,0.50553776]
[1740564382077,0.05623328,89189.0,89188.0,0.50553776]
[1740564383723,0.22441528,89189.0,89188.0,0.50553776]
[1740564384340,0.2420012,89189.0,89188.0,0.50553776]
[1740564385969,0.27561245,89189.0,89188.0,0.18043776]
[1740564387055,0.27461245,89189.0,89188.0,0.16843776]
[1740564387459,0.27561245,89189.0,89188.0,0.17943776]
[1740564388283,0.58388968,89189.0,89188.0,0.17943776]
[1740564389483,0.58388968,89189.0,89188.0,0.17343776]
[1740564389677,0.58388968,89189.0,89188.0,0.17843776]
[1740564390082,0.58288968,89189.0,89188.0,0.17343776]
[1740564390484,0.58288968,89189.0,89188.0,0.17743776]
[1740564391042,0.56530376,89189.0,89188.0,0.17743776]
[1740564392694,0.56530376,89189.0,89188.0,0.17243776]
[1740564393320,0.56530376,89189.0,89188.0,0.16843776]
[1740564393644,0.56630376,89189.0,89188.0,0.16843776]
[1740564394566,0.58389161,89189.0,89188.0,0.16843776]
[1740564394870,0.58289161,89189.0,89188.0,0.16843776]
[1740564396360,0.58289161,89189.0,89188.0,0.16943776]
[1740564396785,0.58289161,89189.0,89188.0,0.17143776]
[1740564397118,0.58289161,89189.0,89188.0,0.17443776]
[1740564397768,0.11470961,89189.0,89188.0,0.17443776]
[1740564397963,0.28289161,89189.0,89188.0,0.17443776]
[1740564398704,0.11470961,89189.0,89188.0,0.17443776]
[1740564399267,0.28289161,89189.0,89188.0,0.17443776]
[1740564399466,0.11470961,89189.0,89188.0,0.17443776]
[1740564400087,0.28289161,89189.0,89188.0,0.17443776]
[1740564401455,0.26530376,89189.0,89188.0,0.17443776]
[1740564403890,0.22424,89191.0,89188.0,0.17443776]
[1740564404185,0.168182,89189.0,89188.0,0.17443776]
[1740564404732,0.18576928,89189.0,89188.0,0.17443776]
[1740564404922,0.21581119,89189.0,89188.0,0.17443776]
[1740564405123,0.04762919,89189.0,89188.0,0.17443776]
[1740564405321,0.04762919,89189.0,89188.0,0.25573776]
[1740564405733,0.04762919,89189.0,89188.0,0.24973776]
[1740564406070,0.04805349,89189.0,89188.0,0.42192176]
[1740564406234,0.04805349,89189.0,89188.0,0.41992176]
[1740564406433,0.01801158,89189.0,89188.0,0.41792176]
[1740564406831,0.01801158,89189.0,89188.0,0.42092176]
[1740564407034,0.01801158,89189.0,89188.0,0.42392176]
[1740564408663,0.01801158,89189.0,89188.0,0.41792176]
[1740564409231,0.01801158,89189.0,89188.0,0.42192176]
[1740564409568,0.01801158,89189.0,89188.0,0.42392176]
[1740564410024,0.01901158,89189.0,89188.0,0.42992176]
[1740564411190,0.0014243,89189.0,89188.0,0.42992176]
[1740564411743,0.0014243,89189.0,89188.0,0.75502176]
[1740564412259,0.02907253,89198.0,89188.0,0.58683776]
[1740564412531,0.3,89205.0,89189.0,0.00156948]
[1740564412737,0.3,89205.0,89188.0,0.58683776]
[1740564412891,0.168173,89194.0,89188.0,0.58683776]
[1740564413097,0.168173,89194.0,89188.0,0.58083776]
[1740564413293,0.168171,89195.0,89188.0,0.74902076]
[1740564413496,0.168172,89195.0,89188.0,0.57783776]
[1740564413703,0.168172,89195.0,89188.0,0.74602076]
[1740564415170,0.168172,89195.0,89188.0,0.57483776]
[1740564415347,0.168169,89196.0,89189.0,0.168182]
[1740564415559,0.16817,89195.0,89188.0,0.75202076]
[1740564415761,0.01758548,89194.0,89188.0,0.74702076]
[1740564416244,0.01758548,89194.0,89188.0,0.58283776]
[1740564416448,0.224232,89193.0,89188.0,0.57883776]
[1740564416671,0.168179,89191.0,89189.0,0.004]
[1740564416872,0.224236,89192.0,89188.0,0.57883776]
[1740564417047,0.01758548,89194.0,89188.0,0.57883776]
[1740564417208,0.01800978,89194.0,89188.0,0.57983776]
[1740564417609,0.18618178,89194.0,89188.0,0.57983776]
[1740564418243,0.18618278,89194.0,89188.0,0.57983776]
[1740564418480,0.01800978,89194.0,89188.0,0.57983776]
[1740564418599,0.01800978,89194.0,89188.0,0.58383776]
[1740564418802,0.18618278,89194.0,89188.0,0.58383776]
[1740564419002,0.18618278,89194.0,89188.0,0.57883776]
[1740564419624,0.18618278,89194.0,89188.0,0.58383776]
[1740564420248,0.18618278,89194.0,89188.0,0.58883776]
[1740564420564,0.01800978,89194.0,89188.0,0.58883776]
[1740564420794,0.16818,89190.0,89188.0,0.58883776]
[1740564420941,0.168182,89189.0,89188.0,0.58883776]
[1740564421470,0.16818,89190.0,89188.0,0.58883776]
[1740564421653,0.0004243,89194.0,89188.0,0.58883776]
[1740564421842,0.168175,89193.0,89188.0,0.58883776]
[1740564422047,0.168175,89193.0,89188.0,0.58483776]
[1740564422048,0.168178,89191.0,89188.0,0.58483776]
[1740564422245,0.0004243,89194.0,89188.0,0.59083776]
[1740564422570,0.0004243,89194.0,89193.0,0.249874]
[1740564422995,0.0004243,89194.0,89193.0,0.0817]
[1740564423791,0.0014243,89194.0,89193.0,0.0887]
[1740564424218,0.0014243,89194.0,89193.0,0.0957]
[1740564424416,0.1695963,89194.0,89193.0,0.014]
[1740564424725,0.18718282,89194.0,89193.0,0.014]
[1740564426574,0.48718282,89194.0,89193.0,0.014]
[1740564426806,0.48718282,89194.0,89188.0,0.16843776]
[1740564426807,0.468182,89189.0,89188.0,0.16843776]
[1740564427429,0.468182,89189.0,89188.0,0.13470653]
[1740564427825,0.468182,89189.0,89188.0,0.1009753]
[1740564428020,0.549282,89189.0,89188.0,0.1009753]
[1740564428233,0.549282,89189.0,89188.0,0.1039753]
[1740564428395,0.549282,89189.0,89188.0,0.07024407]
[1740564428908,0.549282,89189.0,89188.0,0.03851284]
[1740564429351,0.549282,89189.0,89188.0,0.03373123]
[1740564429513,0.549282,89189.0,89188.0,0.02873123]
[1740564429710,0.551282,89189.0,89188.0,0.02873123]
[1740564429941,0.555282,89189.0,89188.0,0.02873123]
[1740564430720,0.474182,89189.0,89188.0,0.02873123]
[1740564433247,0.555582,89189.0,89188.0,0.02873123]
[1740564433658,0.474182,89189.0,89188.0,0.02873123]
[1740564434575,0.49177029,89189.0,89188.0,0.02873123]
[1740564440289,0.49219439,89189.0,89188.0,0.02873123]
[1740564442784,0.32001239,89189.0,89188.0,0.02873123]
[1740564443500,0.3034241,89189.0,89188.0,0.02873123]
[1740564443682,0.4716061,89189.0,89188.0,0.02873123]
[1740564444232,0.1716061,89189.0,89188.0,0.02873123]
[1740564445196,0.1696061,89189.0,89188.0,0.02873123]
[1740564445412,0.1706061,89189.0,89188.0,0.02873123]
[1740564445731,0.1716061,89189.0,89188.0,0.02873123]
[1740564445934,0.1686061,89189.0,89188.0,0.02873123]
[1740564446221,0.1716061,89189.0,89188.0,0.02873123]
[1740564446934,0.18919478,89189.0,89188.0,0.02873123]
[1740564449226,0.18719478,89189.0,89188.0,0.02873123]
[1740564449407,0.19019478,89189.0,89188.0,0.02873123]
[1740564449608,0.18819478,89189.0,89188.0,0.02873123]
[1740564450046,0.18619478,89189.0,89188.0,0.02873123]
[1740564450207,0.18719478,89189.0,89188.0,0.02873123]
[1740564451501,0.1696061,89189.0,89188.0,0.02873123]
[1740564454461,0.48719414,89189.0,89188.0,0.02873123]
[1740564458238,0.49574047,89189.0,89188.0,0.02873123]
[1740564460502,0.47815243,89189.0,89188.0,0.02873123]
[1740564465183,0.49574033,89189.0,89188.0,0.02873123]
[1740564466935,0.49574033,89189.0,89188.0,0.11569921]
[1740564467375,0.19574033,89189.0,89188.0,0.11569921]
[1740564467580,0.19574033,89189.0,89188.0,0.10813123]
[1740564467817,0.49574033,89189.0,89188.0,0.10813123]
[1740564470085,0.32755833,89189.0,89188.0,0.10813123]
[1740564471332,0.30997043,89189.0,89188.0,0.10813123]
[1740564471535,0.168181,89190.0,89188.0,0.10813123]
[1740564472122,0.168182,89189.0,89188.0,0.10813123]
[1740564472707,0.00851475,89189.0,89188.0,0.27631523]
[1740564472957,0.168174,89193.0,89188.0,0.27631423]
[1740564473351,0.001,89190.0,89188.0,0.10813123]
[1740564473879,0.224232,89193.0,89188.0,0.10813123]
[1740564474051,0.168178,89191.0,89188.0,0.10813123]
[1740564474672,0.01758649,89191.0,89188.0,0.10813123]
[1740564474880,0.001,89190.0,89188.0,0.10813123]
[1740564475402,0.16918,89190.0,89188.0,0.10813123]
[1740564476460,0.16818,89190.0,89188.0,0.10813123]
[1740564476934,0.02712064,89191.0,89188.0,0.10813123]
[1740564477106,0.19529964,89191.0,89188.0,0.10813123]
[1740564477335,0.19429964,89191.0,89188.0,0.10813123]
[1740564477874,0.02612064,89191.0,89188.0,0.10813123]
[1740564478314,0.19430064,89191.0,89188.0,0.10813123]
[1740564479624,0.02712064,89191.0,89188.0,0.10813123]
[1740564480318,0.01858649,89191.0,89190.0,0.16818]
[1740564480522,0.3,89204.0,89189.0,0.168181]
[1740564480944,0.01758641,89191.0,89188.0,0.10813123]
[1740564481146,0.3,89194.0,89189.0,0.168181]
[1740564481695,0.03727159,89198.0,89188.0,0.10813123]
[1740564482023,0.3,89197.0,89191.0,0.168177]
[1740564482372,0.3,89197.0,89188.0,0.10813123]
[1740564482529,0.03618133,89198.0,89194.0,0.167172]
[1740564482715,0.224213,89201.0,89190.0,0.224239]
[1740564482909,0.168163,89199.0,89191.0,0.00156948]
[1740564483120,0.20548216,89201.0,89195.0,0.16817]
[1740564483584,0.003,89197.0,89193.0,0.168173]
[1740564483732,0.003,89197.0,89189.0,0.00156948]
[1740564483942,0.168164,89199.0,89192.0,0.168175]
[1740564484325,0.01758564,89196.0,89194.0,0.168172]
[1740564484523,0.01758564,89196.0,89195.0,0.16817]
[1740564484731,0.01758564,89196.0,89190.0,0.22424]
[1740564485348,0.01758564,89196.0,89193.0,0.168174]
[1740564485783,0.01758564,89196.0,89190.0,0.3251]
[1740564486034,0.01758564,89196.0,89192.0,0.224235]
[1740564486278,0.01958564,89196.0,89193.0,0.168173]
[1740564486519,0.01958564,89196.0,89191.0,0.224237]
[1740564486717,0.02158564,89196.0,89195.0,0.16817]
[1740564486933,0.02358564,89196.0,89193.0,0.168173]
[1740564487139,0.01958564,89196.0,89193.0,0.168173]
[1740564487332,0.02158564,89196.0,89193.0,0.168173]
[1740564487591,0.02158564,89196.0,89190.0,0.3259482]
[1740564487592,0.01958564,89196.0,89190.0,0.3259482]
[1740564487757,0.01958564,89196.0,89195.0,0.16817]
[1740564487982,0.01958564,89196.0,89195.0,0.29677]
[1740564488525,0.01758564,89196.0,89195.0,0.29677]
[1740564488930,0.02158564,89196.0,89195.0,0.29677]
[1740564489379,0.01958564,89196.0,89195.0,0.29677]
[1740564489694,0.01958564,89196.0,89195.0,0.29977]
[1740564490022,0.01758564,89196.0,89195.0,0.29977]
[1740564490373,0.01758564,89196.0,89195.0,0.30377]
[1740564491397,0.0004241,89199.0,89198.0,0.168165]
[1740564491817,0.0004241,89199.0,89198.0,0.493265]
[1740564492023,0.1685871,89199.0,89198.0,0.3251]
[1740564492736,0.16044772,89199.0,89198.0,0.3251]
[1740564493036,0.16044772,89199.0,89198.0,0.3271]
[1740564493265,0.03732316,89201.0,89198.0,0.3291]
[1740564493395,0.03732316,89201.0,89198.0,0.497263]
[1740564493604,0.168159,89202.0,89198.0,0.3291]
[1740564494004,0.168157,89202.0,89198.0,0.3291]
[1740564494205,0.20537774,89203.0,89198.0,0.497265]
[1740564494613,0.03722174,89203.0,89198.0,0.3291]
[1740564494867,0.168156,89203.0,89198.0,0.3291]
[1740564495001,0.224202,89206.0,89198.0,0.3291]
[1740564495202,0.26043686,89206.0,89199.0,0.168161]
[1740564495400,0.03623486,89206.0,89198.0,0.3251]
[1740564495606,0.168154,89204.0,89199.0,0.168162]
[1740564495946,0.168155,89204.0,89199.0,0.168163]
[1740564496144,0.168155,89203.0,89198.0,0.493264]
[1740564496368,0.03871519,89206.0,89198.0,0.3251]
[1740564496647,0.168163,89199.0,89198.0,0.3251]
[1740564497691,0.18574788,89199.0,89198.0,0.3251]
[1740564499017,0.18574788,89199.0,89198.0,0.3271]
[1740564499241,0.18574788,89199.0,89198.0,0.3291]
[1740564499610,0.18574788,89199.0,89198.0,0.329948]
[1740564499820,0.18574788,89199.0,89198.0,0.004848]
[1740564500008,0.18574788,89199.0,89198.0,0.002848]
[1740564500393,0.18574788,89199.0,89198.0,0.000848]
[1740564501426,0.18674788,89199.0,89198.0,0.000848]
[1740564501760,0.48774788,89199.0,89198.0,0.000848]
[1740564501936,0.48674788,89199.0,89198.0,0.000848]
[1740564502894,0.469163,89199.0,89198.0,0.000848]
[1740564505850,0.301,89199.0,89198.0,0.000848]
[1740564506056,0.31858551,89199.0,89198.0,0.080448]
[1740564506631,0.48674851,89199.0,89198.0,0.080448]
[1740564507453,0.48574851,89199.0,89198.0,0.080448]
[1740564507837,0.48674851,89199.0,89198.0,0.080448]
[1740564508412,0.48574851,89199.0,89198.0,0.082448]
[1740564508747,0.48574851,89199.0,89198.0,0.084448]
[1740564511382,0.468163,89199.0,89198.0,0.084448]
[1740564512203,0.468163,89199.0,89198.0,0.004848]
[1740564513166,0.468163,89199.0,89198.0,0.002848]
[1740564513911,0.468163,89199.0,89198.0,0.000848]
[1740564514644,0.4857489,89199.0,89198.0,0.000848]
[1740564516469,0.4857489,89199.0,89198.0,0.001848]
[1740564517108,0.4857489,89199.0,89198.0,0.000848]
[1740564518328,0.4857489,89199.0,89198.0,0.004848]
[1740564520129,0.4857489,89199.0,89198.0,0.002848]
[1740564520341,0.4857489,89199.0,89198.0,0.000848]
[1740564521231,0.4857489,89199.0,89198.0,0.001848]
[1740564521477,0.468163,89199.0,89198.0,0.002848]
[1740564523007,0.468587,89199.0,89198.0,0.001848]
[1740564523394,0.468587,89199.0,89198.0,0.003848]
[1740564526099,0.48617284,89199.0,89198.0,0.003848]
[1740564529623,0.01800984,89199.0,89198.0,0.251413]
[1740564529965,0.01800984,89199.0,89198.0,0.083248]
[1740564530300,0.000424,89199.0,89198.0,0.083248]
[1740564530523,0.168587,89199.0,89198.0,0.083248]
[1740564531063,0.000424,89199.0,89198.0,0.251413]
[1740564532307,0.000424,89199.0,89198.0,0.083248]
[1740564532894,0.168587,89199.0,89198.0,0.083248]
[1740564533096,0.000424,89199.0,89198.0,0.083248]
[1740564533686,0.01800865,89199.0,89198.0,0.083248]
[1740564533887,0.18617165,89199.0,89198.0,0.083248]
[1740564534097,0.01800865,89199.0,89198.0,0.083248]
[1740564535557,0.01800865,89199.0,89198.0,0.251413]
[1740564540720,0.000424,89199.0,89198.0,0.251413]
[1740564541327,0.000424,89199.0,89198.0,0.299913]
[1740564544009,0.01800846,89199.0,89198.0,0.299913]
[1740564544268,0.01800846,89199.0,89198.0,0.131748]
[1740564544907,0.01800846,89199.0,89198.0,0.299913]
[1740564545313,0.01800846,89199.0,89198.0,0.625013]
[1740564551309,0.000424,89199.0,89198.0,0.625013]
[1740564554776,0.01800851,89199.0,89198.0,0.625013]
[1740564556840,0.3,89210.0,89198.0,0.456848]
[1740564557045,0.3,89210.0,89201.0,0.168159]
[1740564557245,0.168147,89208.0,89201.0,0.168159]
[1740564557444,0.18573133,89208.0,89201.0,0.168159]
[1740564558037,0.18573133,89208.0,89198.0,0.455848]
[1740564558263,0.18573133,89208.0,89202.0,0.168157]
[1740564558871,0.18773133,89208.0,89202.0,0.168157]
[1740564559486,0.16815,89206.0,89200.0,0.16816]
[1740564559781,0.04491467,89206.0,89200.0,0.16816]
[1740564559995,0.168149,89207.0,89200.0,0.16816]
[1740564560191,0.168155,89204.0,89198.0,0.453848]
[1740564560396,0.224202,89206.0,89198.0,0.453848]
[1740564560397,0.18573645,89205.0,89198.0,0.453848]
[1740564560599,0.18573645,89205.0,89198.0,0.622013]
[1740564561216,0.168152,89205.0,89198.0,0.622013]
[1740564561382,0.168153,89204.0,89198.0,0.453848]
[1740564562221,0.224187,89211.0,89198.0,0.453848]
[1740564562556,0.224187,89211.0,89199.0,0.168162]
[1740564562557,0.16815,89206.0,89199.0,0.168162]
[1740564563129,0.16815,89206.0,89199.0,0.493262]
[1740564563291,0.168148,89207.0,89199.0,0.493262]
[1740564563687,0.168148,89207.0,89200.0,0.168161]
[1740564564178,0.168145,89209.0,89201.0,0.168158]
[1740564564402,0.003,89211.0,89202.0,0.168156]
[1740564564586,0.01758432,89206.0,89202.0,0.168156]
[1740564565810,0.01858432,89206.0,89202.0,0.168156]
[1740564565981,0.01858432,89206.0,89203.0,0.168154]
[1740564566187,0.01858432,89206.0,89202.0,0.168157]
[1740564566686,0.01858432,89206.0,89200.0,0.16816]
[1740564566981,0.01858432,89206.0,89199.0,0.3251]
[1740564567189,0.01758432,89206.0,89201.0,0.168158]
[1740564567410,0.01858432,89206.0,89201.0,0.168158]
[1740564567631,0.01858432,89206.0,89200.0,0.16816]
[1740564567843,0.18573432,89206.0,89200.0,0.16816]
[1740564568012,0.18573432,89206.0,89199.0,0.549316]
[1740564568191,0.01858432,89206.0,89201.0,0.168157]
[1740564568400,0.01858432,89206.0,89203.0,0.168155]
[1740564568611,0.01758432,89206.0,89202.0,0.168156]
[1740564568807,0.00861747,89212.0,89202.0,0.168156]
[1740564569032,0.0185842,89206.0,89202.0,0.168156]
[1740564569438,0.001,89206.0,89202.0,0.168156]
[1740564569632,0.001,89206.0,89199.0,0.549316]
[1740564569840,0.001,89206.0,89200.0,0.168159]
[1740564570045,0.001,89206.0,89199.0,0.549316]
[1740564570427,0.168148,89207.0,89200.0,0.168161]
[1740564570827,0.001,89206.0,89199.0,0.3251]
[1740564571061,0.001,89206.0,89201.0,0.168159]
[1740564571254,0.000424,89208.0,89201.0,0.168159]
[1740564571449,0.000424,89208.0,89199.0,0.3251]
[1740564571626,0.16815,89206.0,89199.0,0.3251]
[1740564572024,0.000424,89208.0,89199.0,0.3251]
[1740564572370,0.01758445,89205.0,89202.0,0.168156]
[1740564572866,0.01758445,89205.0,89203.0,0.168155]
[1740564573064,0.01758445,89205.0,89202.0,0.168156]
[1740564573303,0.001424,89208.0,89203.0,0.168155]
[1740564573506,0.002424,89208.0,89201.0,0.168158]
[1740564573865,0.168148,89207.0,89200.0,0.16816]
[1740564574066,0.000424,89208.0,89199.0,0.3251]
[1740564574264,0.168161,89200.0,89199.0,0.3251]
[1740564574465,0.0805,89205.0,89199.0,0.3251]
[1740564574709,0.000424,89208.0,89199.0,0.3251]
[1740564574939,0.168156,89203.0,89199.0,0.3251]
[1740564575113,0.168161,89200.0,89199.0,0.3251]
[1740564576507,0.18574615,89200.0,89199.0,0.3251]
[1740564577045,0.18574615,89200.0,89199.0,0.3271]
[1740564577927,0.21939231,89201.0,89199.0,0.3271]
[1740564578129,0.21939231,89201.0,89200.0,0.0799]
[1740564578469,0.224183,89213.0,89200.0,0.0799]
[1740564578652,0.23280347,89212.0,89200.0,0.0799]
[1740564578887,0.168144,89209.0,89200.0,0.0799]
[1740564579055,0.168572,89208.0,89200.0,0.0799]
[1740564579234,0.00861747,89212.0,89200.0,0.0799]
[1740564579665,0.30861747,89212.0,89200.0,0.0799]
[1740564579860,0.16814,89211.0,89200.0,0.0799]
[1740564580056,0.16814,89211.0,89200.0,0.251061]
[1740564580413,0.00861747,89212.0,89200.0,0.0799]
[1740564580551,0.01758403,89209.0,89204.0,0.168152]
[1740564580754,0.01758403,89209.0,89200.0,0.0809]
[1740564580964,0.01758403,89209.0,89201.0,0.168157]
[1740564581352,0.00861747,89212.0,89203.0,0.168155]
[1740564581571,0.00861747,89212.0,89204.0,0.168153]
[1740564581791,0.00861747,89212.0,89203.0,0.168155]
[1740564582168,0.00861747,89212.0,89203.0,0.168153]
[1740564582370,0.00861747,89212.0,89203.0,0.168154]
[1740564582838,0.00861747,89212.0,89204.0,0.001]
[1740564583027,0.00861747,89212.0,89203.0,0.168154]
[1740564583253,0.03974444,89217.0,89216.0,0.168131]
[1740564583448,0.0004241,89237.0,89221.0,0.168121]
[1740564583647,0.03799871,89224.0,89221.0,0.57338992]
[1740564583867,0.03799871,89224.0,89221.0,0.571821]
[1740564584608,0.00051784,89222.0,89221.0,0.571821]
[1740564585055,0.00151784,89222.0,89221.0,0.578821]
[1740564586324,0.00151784,89222.0,89221.0,0.585821]
[1740564598031,0.00151784,89222.0,89221.0,0.3391]
[1740564599491,0.16963684,89222.0,89221.0,0.3391]
[1740564599966,0.00151784,89222.0,89221.0,0.3391]
[1740564600903,0.16963684,89222.0,89221.0,0.3391]
[1740564601594,0.16963684,89222.0,89221.0,0.3321]
[1740564601827,0.00151784,89222.0,89221.0,0.3391]
[1740564602294,0.00151784,89222.0,89221.0,0.3321]
[1740564602502,0.00151784,89222.0,89221.0,0.3391]
[1740564603255,0.00151784,89222.0,89221.0,0.507221]
[1740564603973,0.00151784,89222.0,89221.0,0.584321]
[1740564604196,0.00151784,89222.0,89221.0,0.630621]
[1740564606799,0.00151784,89222.0,89221.0,0.75190938]
[1740564607002,0.00151784,89222.0,89221.0,0.79152683]
[1740564607546,0.00151784,89222.0,89221.0,1.32812683]
[1740564607745,8.4e-07,89222.0,89221.0,1.32812683]
[1740564608172,8.4e-07,89222.0,89221.0,1.62812683]
[1740564608742,8.4e-07,89222.0,89221.0,1.63512683]
[1740564608945,8.4e-07,89222.0,89221.0,1.58850938]
[1740564609369,8.4e-07,89222.0,89221.0,1.59550938]
[1740564609957,8.4e-07,89222.0,89221.0,1.63343975]
[1740564610161,8.4e-07,89222.0,89221.0,1.59550938]
[1740564610755,8.4e-07,89222.0,89221.0,1.58850938]
[1740564611579,0.168079,89244.0,89238.0,0.168088]
[1740564611777,0.3,89265.0,89238.0,0.16819743]
[1740564611972,0.168078,89244.0,89239.0,0.00156862]
[1740564612291,0.168078,89244.0,89240.0,0.3251]
[1740564612887,0.224082,89253.0,89240.0,0.3251]